Workbook

Sheet Лист1
I1: К постановлению Администрации Североуральского городского округа от 19 .12.2017 г. № 1377
A2: Приложение № 2 к муниципальной программе Североуральского городского округа «Развитие жилищно-коммунального хозяйства и транспортного обслуживания населения, повышение энергетической эффективности и охрана окружающей среды в Североуральском городском округе» на 2014-2020 годы
A3: План мероприятий
A4: по выполнению муниципальной программы Североуральского городского округа
A5: «Развитие жилищно-коммунального хозяйства и транспортного обслуживания населения,
A6: повышение энергетической эффективности и охрана окружающей среды в Североуральском городском округе» на 2014-2020 годы
A8: № строки | B8: Наименование мероприятия/ Источники расходов на финансирование | C8: Объем расходов на выполнение мероприятия за счет всех источников ресурсного обеспечения, тыс. руб. | K8: Номер строки целевых показателей, на достижение которых направлены мероприятия
C9: Всего | D9: 2014 год | E9: 2015 год | F9: 2016 год | G9: 2017 год | H9: 2018 год | I9: 2019 год | J9: 2020 год
B10: 1 | C10: 2 | D10: 3 | E10: 4 | F10: 5 | G10: 6 | H10: 7 | I10: 8 | J10: 9 | K10: 10
A11: 1. | B11: ВСЕГО по муниципальной программе, в том числе: | C11: =SUM(D11:J11) -> 1,181,500.90374 | D11: =SUM(D12+D15+D16) -> 283,826.90000 | E11: 348,239.16000 | F11: 216,622.58758 | G11: 122,867.75616 | H11: 81,381.00000 | I11: 64,762.40000 | J11: 63,801.10000 | K11: Х
A12: 1.1. | B12: местный бюджет, в т.ч.: | C12: 640,824.99511 | D12: =SUM(D13:D14) -> 92,792.80000 | E12: 126,635.26000 | F12: 117,147.57339 | G12: 96,239.06172 | H12: 80,408.10000 | I12: 63,801.10000 | J12: 63,801.10000
B13: - местный бюджет | C13: 640,629.72951 | D13: =SUM(D18+D23) -> 92,792.80000 | E13: 126,635.26000 | F13: 117,147.57339 | G13: 96,043.79612 | H13: 80,408.10000 | I13: 63,801.10000 | J13: 63,801.10000
B14: - средства заинтересованных лиц | C14: 195.26560 | D14: =SUM(D24) -> 0.00000 | E14: 0.00000 | F14: 0.00000 | G14: 195.26560 | H14: 0.00000 | I14: 0.00000 | J14: 0.00000
A15: 1.2. | B15: областной бюджет | C15: 337,587.74811 | D15: =SUM(D19+D25) -> 109,216.10000 | E15: 135,104.30000 | F15: 81,477.35126 | G15: 9,855.79685 | H15: 972.90000 | I15: 961.30000 | J15: 0.00000
A16: 1.3. | B16: федеральный бюджет | C16: 203,088.16052 | D16: =SUM(D26+D20) -> 81,818.00000 | E16: 86,499.60000 | F16: 17,997.66293 | G16: 16,772.89759 | H16: 0.00000 | I16: 0.00000 | J16: 0.00000 | N16: =SUM(G12:G16) -> 219106.81788
A17: 2. | B17: Капитальные вложения | C17: =SUM(C18:C20) -> 657,522.94102 | D17: =SUM(D18:D20) -> 232,761.90000 | E17: =SUM(E18:E20) -> 271,669.00000 | F17: 133,207.88470 | G17: 16,137.35632 | H17: 3,746.80000 | I17: 0.00000 | J17: 0.00000 | K17: Х
A18: 2.1. | B18: местный бюджет | C18: =SUM(D18:J18) -> 140,918.55724 | D18: =D34+D127+D199+D219+D250+D285+D354+D373 -> 44,727.80000 | E18: =E34+E127+E199+E219+E250+E285+E354+E373 -> 50,411.30000 | F18: =F34+F127+F199+F219+F250+F285+F354+F373 -> 34,707.97051 | G18: =G34+G127+G199+G219+G250+G285+G354+G373+G409 -> 7,324.68673 | H18: =H34+H127+H199+H219+H250+H285+H354+H373 -> 3,746.80000 | I18: =I34+I127+I199+I219+I250+I285+I354+I373 -> 0.00000 | J18: =J34+J127+J199+J219+J250+J285+J354+J373 -> 0.00000
A19: 2.2. | B19: областной бюджет | C19: 329,148.11326 | D19: =D128+D220+D35 -> 106,216.10000 | E19: =E128+E220+E35 -> 134,758.10000 | F19: =F128+F220 -> 80,502.25126 | G19: =G128+G220 -> 7,671.66200 | H19: =H128+H220 -> 0.00000 | I19: =I128+I220 -> 0.00000 | J19: =J128+J220 -> 0.00000
A20: 2.3. | B20: федеральный бюджет | C20: 187,456.27052 | D20: =D221 -> 81,818.00000 | E20: =E221 -> 86,499.60000 | F20: 17,997.66293 | G20: 1,141.00759 | H20: 0.00000 | I20: 0.00000 | J20: 0.00000
A21: 3. | B21: Прочие нужды | C21: 730,706.52560 | D21: =SUM(D22:D25) -> 99,130.00000 | E21: =SUM(E22:E25) -> 152,794.12000 | F21: =SUM(F22:F25) -> 165,854.30576 | G21: =SUM(G26+G25+G22) -> 106,730.39984 | H21: =SUM(H26+H25+H22) -> 77,634.20000 | I21: =SUM(I26+I25+I22) -> 64,762.40000 | J21: =SUM(J26+J25+J22) -> 63,801.10000 | K21: Х
A22: 3.1. | B22: местный бюджет, в т.ч.: | C22: =SUM(D22:J22) -> 499,906.43787 | D22: =D49+D173+D208+D237+D294+D363+D389+D259+D342 -> 48,065.00000 | E22: =E49+E173+E208+E237+E294+E363+E389+E259+E342 -> 76,223.96000 | F22: =F49+F173+F208+F237+F294+F363+F389+F259+F342 -> 82,439.60288 | G22: =SUM(G23:G24) -> 88,914.37499 | H22: =H49+H173+H208+H237+H294+H363+H389+H259+H342 -> 76,661.30000 | I22: =I49+I173+I208+I237+I294+I363+I389+I259+I342 -> 63,801.10000 | J22: =J49+J173+J208+J237+J294+J363+J389+J259+J342 -> 63,801.10000
B23: - местный бюджет | C23: 499,711.17227 | D23: =SUM(D49+D173+D208+D237+D259+D294+D342+D363+D389+D425) -> 48,065.00000 | E23: 76,223.96000 | F23: 82,439.60288 | G23: 88,719.10939 | H23: 76,661.30000 | I23: 63,801.10000 | J23: 63,801.10000
B24: - средства заинтересованных лиц | C24: 195.26560 | D24: =SUM(D426) -> 0.00000 | E24: 0.00000 | F24: 0.00000 | G24: 195.26560 | H24: 0.00000 | I24: 0.00000 | J24: 0.00000
A25: 3.2. | B25: областной бюджет | C25: =SUM(D25:J25) -> 8,439.63485 | D25: =SUM(D174+D388+D50+D260+D427) -> 3,000.00000 | E25: 346.20000 | F25: 975.10000 | G25: =SUM(G174+G388+G50+G260+G427) -> 2,184.13485 | H25: 972.90000 | I25: 961.30000 | J25: 0.00000
A26: 3.3. | B26: федеральный бюджет | C26: 15,631.89000 | D26: 0.00000 | E26: =E174 -> 0.00000 | F26: =F174 -> 0.00000 | G26: =SUM(G428) -> 15,631.89000 | H26: =SUM(H428) -> 0.00000 | I26: =SUM(I428) -> 0.00000 | J26: =SUM(J428) -> 0.00000
A27: 4. | B27: Подпрограмма 1: Комплексное благоустройство территории Североуральского городского округа
A28: 4.1. | B28: Всего по подпрограмме 1, | C28: =SUM(C30+C31) -> 189,536.01868 | D28: =SUM(D30:D31) -> 25,725.20000 | E28: 29,762.20000 | F28: 47,222.84145 | G28: 35,527.97723 | H28: 21,980.00000 | I28: 5,241.30000 | J28: 24,076.50000 | K28: Х
B29: в том числе:
A30: 4.2. | B30: местный бюджет | C30: =SUM(D30:J30) -> 180,830.61868 | D30: =SUM(D34+D49) -> 24,510.50000 | E30: 26,102.30000 | F30: 46,247.74145 | G30: =SUM(G34+G49) -> 34,564.47723 | H30: 21,028.10000 | I30: 4,301.00000 | J30: 24,076.50000
A31: 4.3. | B31: областной бюджет | C31: =SUM(D31:J31) -> 8,705.40000 | D31: 1,214.70000 | E31: 3,659.90000 | F31: 975.10000 | G31: 963.50000 | H31: 951.90000 | I31: 940.30000 | J31: 0.00000
A32: 5. | B32: 1. Капитальные вложения
A33: 5.1. | B33: Всего по направлению «Капитальные вложения» всего, в том числе | C33: =SUM(D33:J33) -> 19,351.90000 | D33: =SUM(D34+D35) -> 3,536.40000 | E33: =SUM(E34+E35) -> 3,674.70000 | F33: =SUM(F34) -> 4,819.00000 | G33: =SUM(G34) -> 3,575.00000 | H33: =SUM(H34) -> 3,746.80000 | I33: =SUM(I34) -> 0.00000 | J33: =SUM(J34) -> 0.00000 | K33: Х
A34: 5.2. | B34: местный бюджет | C34: =SUM(D34:J34) -> 14,823.50000 | D34: =SUM(D45) -> 2,321.70000 | E34: =SUM(E45) -> 361.00000 | F34: =SUM(F45) -> 4,819.00000 | G34: =SUM(G38+G41) -> 3,575.00000 | H34: 3,746.80000 | I34: 0.00000 | J34: 0.00000
A35: 5.3. | B35: областной бюджет | C35: =SUM(D35:J35) -> 4,528.40000 | D35: =SUM(D42) -> 1,214.70000 | E35: =SUM(E42) -> 3,313.70000 | F35: 0.00000 | G35: =SUM(G42) -> 0.00000 | H35: 0.00000 | I35: 0.00000 | J35: 0.00000
A36: 6. | B36: 1.1. Бюджетные инвестиции в объекты капитального строительства
A37: 6.1. | B37: Бюджетные инвестиции в объекты капитального строительства всего, в том числе | C37: 0.00000 | D37: 0.00000 | E37: 0.00000 | F37: 0.00000 | G37: 0.00000 | H37: 0.00000 | I37: 0.00000 | J37: 0.00000 | K37: Х
A38: 6.2. | B38: местный бюджет | C38: 0.00000 | D38: 0.00000 | E38: 0.00000 | F38: 0.00000 | G38: 0.00000 | H38: 0.00000 | I38: 0.00000 | J38: 0.00000
A39: 7. | B39: 1.2. Иные капитальные вложения
A40: 7.1. | B40: Всего | C40: =SUM(D40:J40) -> 19,351.90000 | D40: =SUM(D41:D42) -> 3,536.40000 | E40: =SUM(E41:E42) -> 3,674.70000 | F40: 4,819.00000 | G40: 3,575.00000 | H40: 3,746.80000 | I40: 0.00000 | J40: 0.00000 | K40: Х
A41: 7.2. | B41: местный бюджет | C41: =SUM(D41:J41) -> 14,823.50000 | D41: =SUM(D45) -> 2,321.70000 | E41: 361.00000 | F41: 4,819.00000 | G41: 3,575.00000 | H41: 3,746.80000 | I41: 0.00000 | J41: 0.00000
A42: 7.3. | B42: областной бюджет | C42: =SUM(D42:J42) -> 4,528.40000 | D42: =SUM(D46) -> 1,214.70000 | E42: =SUM(E46) -> 3,313.70000 | F42: 0.00000 | G42: =SUM(G46) -> 0.00000 | H42: 0.00000 | I42: 0.00000 | J42: 0.00000
A43: 8. | B43: Мероприятие 1 Благоустройство дворовых территорий Североуральского городского округа
A44: 8.1. | B44: Всего, из них | C44: =SUM(D44:J44) -> 19,351.90000 | D44: =D45+D46 -> 3,536.40000 | E44: =SUM(E45:E46) -> 3,674.70000 | F44: =SUM(F45) -> 4,819.00000 | G44: =SUM(G45) -> 3,575.00000 | H44: =SUM(H45) -> 3,746.80000 | I44: =SUM(I45) -> 0.00000 | J44: =SUM(J45) -> 0.00000 | K44: стр. 4
A45: 8.2. | B45: местный бюджет | C45: =SUM(D45:J45) -> 14,823.50000 | D45: 2,321.70000 | E45: 361.00000 | F45: 4,819.00000 | G45: 3,575.00000 | H45: 3,746.80000 | I45: 0.00000 | J45: 0.00000
A46: 8.3. | B46: областной бюджет | C46: =D46+E46+F46+G46+H46+I46+J46 -> 4,528.40000 | D46: 1,214.70000 | E46: 3,313.70000 | F46: 0.00000 | G46: 0.00000 | H46: 0.00000 | I46: 0.00000 | J46: 0.00000
A47: 9. | B47: 3. Прочие нужды
A48: 9.1. | B48: Всего по направлению «Прочие нужды», всего, в том числе: | C48: =SUM(D48:J48) -> 170,184.11868 | D48: =SUM(D49:D50) -> 22,188.80000 | E48: 26,087.50000 | F48: 42,403.84145 | G48: 31,952.97723 | H48: 18,233.20000 | I48: 5,241.30000 | J48: 24,076.50000 | K48: Х | N48: =SUM(E45+E53) -> 797.0
A49: 9.2. | B49: местный бюджет | C49: =SUM(D49:J49) -> 166,007.11868 | D49: =SUM(D60+D69+D72+D75+D53+D119) -> 22,188.80000 | E49: =SUM(E60+E69+E72+E75+E53+E119) -> 25,741.30000 | F49: =SUM(F60+F69+F72+F75+F53+F119) -> 41,428.74145 | G49: 30,989.47723 | H49: 17,281.30000 | I49: 4,301.00000 | J49: 24,076.50000
A50: 9.3. | B50: областной бюджет | C50: =SUM(D50:J50) -> 4,177.00000 | D50: =SUM(D76) -> 0.00000 | E50: =SUM(E76) -> 346.20000 | F50: =SUM(F120) -> 975.10000 | G50: =SUM(G120) -> 963.50000 | H50: =SUM(H120) -> 951.90000 | I50: =SUM(I120) -> 940.30000 | J50: =SUM(J120) -> 0.00000
A51: 10. | B51: Мероприятие 1 Благоустройство дворовых территорий Североуральского городского округа
A52: 10.1. | B52: Всего, из них | C52: =SUM(D52:J52) -> 3,927.90000 | D52: =D53+D54 -> 310.90000 | E52: =SUM(E53) -> 436.00000 | F52: 2,681.00000 | G52: 500.00000 | H52: 0.00000 | I52: 0.00000 | J52: 0.00000 | K52: стр. 4
A53: 10.2. | B53: местный бюджет | C53: =SUM(D53:J53) -> 3,927.90000 | D53: 310.90000 | E53: 436.00000 | F53: 2,681.00000 | G53: 500.00000 | H53: 0.00000 | I53: =SUM(H53) -> 0.00000 | J53: =SUM(I53) -> 0.00000
A54: 10.3. | B54: областной бюджет | C54: =D54+E54+F54+G54+H54+I54+J54 -> 0.00000 | D54: 0.00000 | E54: 0.00000 | F54: 0.00000 | G54: 0.00000 | H54: 0.00000 | I54: 0.00000 | J54: 0.00000
A55: 11. | B55: Мероприятие 2 Благоустройство парков и скверов в городе Североуральске
A56: 11.1. | B56: Всего, из них | C56: =SUM(D56:J56) -> 0.00000 | D56: =D57+D58 -> 0.00000 | E56: =SUM(E57) -> 0.00000 | F56: 0.00000 | G56: 0.00000 | H56: 0.00000 | I56: 0.00000 | J56: 0.00000 | K56: Х
A57: 11.2. | B57: местный бюджет | C57: =SUM(D57:J57) -> 0.00000 | D57: 0.00000 | E57: 0.00000 | F57: 0.00000 | G57: 0.00000 | H57: =SUM(G57) -> 0.00000 | I57: =SUM(H57) -> 0.00000 | J57: =SUM(I57) -> 0.00000
A58: 12. | B58: Мероприятие 3- Уличное освещение
A59: 12.1. | B59: Всего, в том числе: | C59: =SUM(D59:J59) -> 78,311.49080 | D59: =SUM(D60) -> 12,001.00000 | E59: 12,600.00000 | F59: 18,150.69080 | G59: 15,955.00000 | H59: 6,404.80000 | I59: 0.00000 | J59: 13,200.00000 | K59: стр.8. с 2017 года стр. 9
A60: 12.2. | B60: местный бюджет | C60: =SUM(D60:J60) -> 78,311.49080 | D60: =SUM(D63+D66) -> 12,001.00000 | E60: 12,600.00000 | F60: 18,150.69080 | G60: 15,955.00000 | H60: 6,404.80000 | I60: 0.00000 | J60: 13,200.00000
A61: 12.3. | B61: - Обеспечение бесперебойной подачи электроэнергии
A62: 12.4. | B62: Всего: | C62: =SUM(D62:J62) -> 52,807.88840 | D62: =SUM(D63) -> 8,644.10000 | E62: =SUM(E63) -> 8,800.00000 | F62: 10,660.69080 | G62: 13,098.29760 | H62: 2,404.80000 | I62: 0.00000 | J62: 9,200.00000 | K62: стр.8. с 2017 года стр. 9
A63: 12.5. | B63: местный бюджет | C63: =SUM(D63:J63) -> 52,807.88840 | D63: 8,644.10000 | E63: 8,800.00000 | F63: 10,660.69080 | G63: 13,098.29760 | H63: 2,404.80000 | I63: 0.00000 | J63: 9,200.00000
A64: 12.6. | B64: - Содержание и ремонт сетей уличного освещения
A65: 12.7. | B65: Всего: | C65: =SUM(D65:J65) -> 25,503.60240 | D65: =SUM(D66) -> 3,356.90000 | E65: =SUM(E66) -> 3,800.00000 | F65: 7,490.00000 | G65: 2,856.70240 | H65: 4,000.00000 | I65: 0.00000 | J65: 4,000.00000 | K65: стр.8. с 2017 года стр. 9
A66: 12.8. | B66: местный бюджет | C66: =SUM(D66:J66) -> 25,503.60240 | D66: 3,356.90000 | E66: 3,800.00000 | F66: 7,490.00000 | G66: 2,856.70240 | H66: 4,000.00000 | I66: 0.00000 | J66: 4,000.00000
A67: 13. | B67: Мероприятие 4 - Озеленение (цветники, валка сухих деревьев)
A68: 13.1. | B68: Всего, из них | C68: =SUM(D68:J68) -> 20,360.29895 | D68: =SUM(D69) -> 2,890.90000 | E68: 2,148.00000 | F68: 3,923.84386 | G68: 3,352.35509 | H68: 3,302.50000 | I68: 1,440.20000 | J68: 3,302.50000 | K68: стр.11
A69: 13.2. | B69: местный бюджет | C69: =SUM(D69:J69) -> 20,360.29895 | D69: 2,890.90000 | E69: 2,148.00000 | F69: 3,923.84386 | G69: 3,352.35509 | H69: 3,302.50000 | I69: 1,440.20000 | J69: 3,302.50000
A70: 14. | B70: Мероприятие 5 - Организация и содержание мест захоронения
A71: 14.1. | B71: Всего, из них | C71: =SUM(D71:J71) -> 19,733.49851 | D71: =SUM(D72) -> 2,263.10000 | E71: 2,306.90000 | F71: 3,619.44212 | G71: 2,961.65639 | H71: 2,860.80000 | I71: 2,860.80000 | J71: 2,860.80000 | K71: стр.16
A72: 14.2. | B72: местный бюджет | C72: =SUM(D72:J72) -> 19,733.49851 | D72: 2,263.10000 | E72: 2,306.90000 | F72: 3,619.44212 | G72: 2,961.65639 | H72: 2,860.80000 | I72: =SUM(H72) -> 2,860.80000 | J72: =SUM(I72) -> 2,860.80000
A73: 15. | B73: Мероприятие 6 - Прочие мероприятия по благоустройству
A74: 15.1. | B74: Всего, в том числе: | C74: =SUM(D74:J74) -> 43,017.28042 | D74: =SUM(D75:D76) -> 4,722.90000 | E74: =SUM(E75:E76) -> 8,596.60000 | F74: 12,256.96467 | G74: 8,014.41575 | H74: 4,713.20000 | I74: 0.00000 | J74: 4,713.20000 | K74: стр.5,5.1.,6,11,13,14,15,17
A75: 15.2. | B75: местный бюджет | C75: =SUM(D75:J75) -> 42,671.08042 | D75: =SUM(D79+D82+D89+D92+D101+D95+D104+D110+D98+D107+D85) -> 4,722.90000 | E75: =SUM(E79+E82+E89+E92+E101+E95+E104+E110+E98+E107+E85+E113) -> 8,250.40000 | F75: =SUM(F79+F82+F89+F92+F101+F95+F104+F110+F98+F107+F85+F113) -> 12,256.96467 | G75: =SUM(G79+G82+G89+G92+G101+G95+G104+G110+G98+G107+G85+G113+G116) -> 8,014.41575 | H75: =SUM(H79+H82+H89+H92+H101+H95+H104+H110+H98+H107+H85+H113+H116) -> 4,713.20000 | I75: 0.00000 | J75: 4,713.20000
A76: 15.3. | B76: областной бюджет | C76: =SUM(D76:J76) -> 346.20000 | D76: =SUM(D86) -> 0.00000 | E76: =SUM(E86) -> 346.20000 | F76: 0.00000 | G76: 0.00000 | H76: 0.00000 | I76: 0.00000 | J76: 0.00000
A77: 15.4. | B77: - Содержание памятников
A78: 15.5. | B78: Всего: | C78: =SUM(C79) -> 2,506.85888 | D78: 369.20000 | E78: 404.90000 | F78: 384.30006 | G78: 466.45882 | H78: 441.00000 | I78: 0.00000 | J78: 441.00000 | K78: стр. 17
A79: 15.6. | B79: местный бюджет | C79: =SUM(D79:J79) -> 2,506.85888 | D79: 369.20000 | E79: 404.90000 | F79: 384.30006 | G79: 466.45882 | H79: 441.00000 | I79: 0.00000 | J79: 441.00000
A80: 15.7. | B80: - Проведение комплекса профилактических работ по уходу за объектами благоустройства
A81: 15.8. | B81: Всего: | C81: =SUM(C82) -> 6,647.89973 | D81: =SUM(D82) -> 1,098.70000 | E81: =SUM(E82) -> 976.10000 | F81: 999.81380 | G81: 1,147.68593 | H81: 1,212.80000 | I81: 0.00000 | J81: 1,212.80000 | K81: стр. 5
A82: 15.9. | B82: местный бюджет | C82: =SUM(D82:J82) -> 6,647.89973 | D82: 1,098.70000 | E82: 976.10000 | F82: 999.81380 | G82: 1,147.68593 | H82: 1,212.80000 | I82: 0.00000 | J82: 1,212.80000
A83: 15.10. | B83: - Регулирование численности безнадзорных животных
A84: 15.11. | B84: Всего: | C84: =SUM(D84:J84) -> 1,677.20000 | D84: =SUM(D85:D86) -> 500.00000 | E84: =SUM(E85:E86) -> 1,177.20000 | F84: 0.00000 | G84: 0.00000 | H84: 0.00000 | I84: 0.00000 | J84: 0.00000 | K84: стр. 13
A85: 15.12. | B85: местный бюджет | C85: =SUM(D85:J85) -> 1,331.00000 | D85: 500.00000 | E85: 831.00000 | F85: 0.00000 | G85: 0.00000 | H85: 0.00000 | I85: =SUM(H85) -> 0.00000 | J85: =SUM(I85) -> 0.00000
A86: 15.13. | B86: областной бюджет | C86: =SUM(D86:J86) -> 346.20000 | E86: 346.20000
A87: 15.14. | B87: - Содержание биоямы (скотомогильник)
A88: 15.15. | B88: Всего: | C88: =SUM(C89) -> 667.98218 | D88: =SUM(D89) -> 116.10000 | E88: =SUM(E89) -> 69.30000 | F88: 77.02912 | G88: 74.75306 | H88: 165.40000 | I88: 0.00000 | J88: 165.40000 | K88: стр.15
A89: 15.16. | B89: местный бюджет | C89: =SUM(D89:J89) -> 667.98218 | D89: 116.10000 | E89: 69.30000 | F89: 77.02912 | G89: 74.75306 | H89: 165.40000 | I89: 0.00000 | J89: 165.40000
A90: 15.17. | B90: - Обустройство и эксплуатация новогодних городков
A91: 15.18. | B91: Всего: | C91: =SUM(C92) -> 15,081.90000 | D91: =SUM(D92) -> 1,685.50000 | E91: =SUM(E92) -> 2,669.20000 | F91: 2,900.00000 | G91: 3,120.00000 | H91: 2,353.60000 | I91: 0.00000 | J91: 2,353.60000 | K91: стр.5
A92: 15.19. | B92: местный бюджет | C92: =SUM(D92:J92) -> 15,081.90000 | D92: 1,685.50000 | E92: 2,669.20000 | F92: 2,900.00000 | G92: 3,120.00000 | H92: 2,353.60000 | I92: 0.00000 | J92: 2,353.60000
A93: 15.20. | B93: - Приобретение декоративного освещения для улиц города Североуральска
A94: 15.21. | B94: Всего: | C94: =SUM(C95) -> 2,474.40000 | D94: =SUM(D95) -> 773.40000 | E94: =SUM(E95) -> 1,701.00000 | F94: 0.00000 | G94: 0.00000 | H94: 0.00000 | I94: 0.00000 | J94: 0.00000 | K94: стр.5
A95: 15.22. | B95: местный бюджет | C95: =SUM(D95:J95) -> 2,474.40000 | D95: 773.40000 | E95: 1,701.00000 | F95: 0.00000 | G95: 0.00000 | H95: 0.00000 | I95: =SUM(H95) -> 0.00000 | J95: =SUM(I95) -> 0.00000
A96: 15.23. | B96: - Обслуживание декоративного освещения для улиц города Североуральска
A97: 15.24. | B97: Всего: | C97: =SUM(C98) -> 560.00000 | D97: =SUM(D98) -> 0.00000 | E97: =SUM(E98) -> 0.00000 | F97: 0.00000 | G97: 560.00000 | H97: 0.00000 | I97: 0.00000 | J97: 0.00000 | K97: стр.5
A98: 15.25. | B98: местный бюджет | C98: =SUM(D98:J98) -> 560.00000 | D98: 0.00000 | E98: 0.00000 | F98: 0.00000 | G98: 560.00000 | H98: 0.00000 | I98: =SUM(H98) -> 0.00000 | J98: =SUM(I98) -> 0.00000
A99: 15.26. | B99: - Акарицидная обработка общественных мест
A100: 15.27. | B100: Всего: | C100: =SUM(C101) -> 998.48990 | D100: =SUM(D101) -> 92.00000 | E100: =SUM(E101) -> 99.90000 | F100: 99.98990 | G100: 45.00000 | H100: 330.80000 | I100: 0.00000 | J100: 330.80000 | K100: стр.14
A101: 15.28. | B101: местный бюджет | C101: =SUM(D101:J101) -> 998.48990 | D101: 92.00000 | E101: 99.90000 | F101: 99.98990 | G101: 45.00000 | H101: 330.80000 | I101: 0.00000 | J101: 330.80000
A102: 15.29. | B102: - Приобретение грунта плодородного (земли садовой)
A103: 15.30. | B103: Всего: | C103: =SUM(C104) -> 756.20000 | D103: =SUM(D104) -> 88.00000 | E103: =SUM(E104) -> 0.00000 | F103: 150.00000 | G103: 99.00000 | H103: 209.60000 | I103: 0.00000 | J103: 209.60000 | K103: стр.11
A104: 15.31. | B104: местный бюджет | C104: =SUM(D104:J104) -> 756.20000 | D104: 88.00000 | E104: 0.00000 | F104: 150.00000 | G104: 99.00000 | H104: 209.60000 | I104: 0.00000 | J104: 209.60000
A105: 15.32. | B105: - Приобретение и установка металлических урн и скамеек
A106: 15.33. | B106: Всего: | C106: =SUM(C107) -> 1,710.25802 | D106: =SUM(D107) -> 0.00000 | E106: =SUM(E107) -> 0.00000 | F106: 1,710.25802 | G106: 0.00000 | H106: 0.00000 | I106: 0.00000 | J106: 0.00000 | K106: стр.6
A107: 15.34. | B107: местный бюджет | C107: =SUM(D107:J107) -> 1,710.25802 | D107: 0.00000 | E107: 0.00000 | F107: 1,710.25802 | G107: 0.00000 | H107: 0.00000 | I107: =SUM(H107) -> 0.00000 | J107: =SUM(I107) -> 0.00000
A108: 15.35. | B108: - Благоустройство мест общего пользования территории Североуральского городского округа
A109: 15.36. | B109: Всего: | C109: =SUM(C110) -> 9,528.04171 | D109: =SUM(D110) -> 0.00000 | E109: =SUM(E110) -> 1,499.00000 | F109: 5,935.57377 | G109: 2,093.46794 | H109: 0.00000 | I109: 0.00000 | J109: 0.00000 | K109: стр.5
A110: 15.37. | B110: местный бюджет | C110: =SUM(D110:J110) -> 9,528.04171 | D110: 0.00000 | E110: 1,499.00000 | F110: 5,935.57377 | G110: 2,093.46794 | H110: 0.00000 | I110: =SUM(H110) -> 0.00000 | J110: =SUM(I110) -> 0.00000
A111: 15.38. | B111: - Обустройство источника нецентрализованного водоснабжения в п. Сосьва
A112: 15.39. | B112: Всего: | C112: =SUM(C113) -> 58.05000 | D112: =SUM(D113) -> 0.00000 | E112: =SUM(E113) -> 0.00000 | F112: 0.00000 | G112: 58.05000 | H112: 0.00000 | I112: 0.00000 | J112: 0.00000 | K112: стр.5
A113: 15.40. | B113: местный бюджет | C113: =SUM(D113:J113) -> 58.05000 | D113: 0.00000 | E113: 0.00000 | F113: 0.00000 | G113: 58.05000 | H113: 0.00000 | I113: =SUM(H113) -> 0.00000 | J113: =SUM(I113) -> 0.00000
A114: 15.41. | B114: - Разработка проектно-сметной документации и проведение ценовой экспертизы скверов, парков и аллей Североуральского городского округа
A115: 15.42. | B115: Всего: | C115: =SUM(C116) -> 350.00000 | D115: =SUM(D116) -> 0.00000 | E115: =SUM(E116) -> 0.00000 | F115: 0.00000 | G115: 350.00000 | H115: 0.00000 | I115: 0.00000 | J115: 0.00000 | K115: стр.5.1.
A116: 15.43. | B116: местный бюджет | C116: =SUM(D116:J116) -> 350.00000 | D116: 0.00000 | E116: 0.00000 | F116: 0.00000 | G116: 350.00000 | H116: 0.00000 | I116: =SUM(H116) -> 0.00000 | J116: =SUM(I116) -> 0.00000
A117: 16. | B117: Мероприятие 7 - Регулирование численности безнадзорных животных
A118: 16.1. | B118: Всего, из них | C118: =SUM(D118:J118) -> 4833.65000 | D118: =SUM(D119:D120) -> 0.00000 | E118: =SUM(E119:E120) -> 0.00000 | F118: 1771.90000 | G118: 1169.55000 | H118: 951.90000 | I118: 940.30000 | J118: 0.00000 | K118: стр.13
A119: 16.2. | B119: местный бюджет | C119: =SUM(D119:J119) -> 1002.85000 | D119: 0.00000 | E119: 0.00000 | F119: 796.80000 | G119: 206.05000 | H119: 0.00000 | I119: =SUM(H119) -> 0.00000 | J119: =SUM(I119) -> 0.00000
A120: 16.3. | B120: областной бюджет | C120: =SUM(D120:J120) -> 3830.80000 | E120: 0.00000 | F120: 975.10000 | G120: 963.50000 | H120: 951.90000 | I120: 940.30000
A121: 17. | B121: Подпрограмма 2: Муниципальная программа по энергосбережению и повышению энергетической эффективности объектов Североуральского городского округа
A122: 17.1. | B122: Всего по подпрограмме 2, в том числе | C122: =SUM(D122:J122) -> 89,538.30978 | D122: =SUM(D123:D124) -> 9,165.50000 | E122: 2,961.60000 | F122: 15,455.86781 | G122: 16,404.34197 | H122: 21,775.50000 | I122: 21,775.50000 | J122: 2,000.00000 | K122: Х
A123: 17.2. | B123: местный бюджет | C123: =SUM(D123:J123) -> 83,193.90978 | D123: =SUM(D127+D173) -> 2,821.10000 | E123: =SUM(E127+E173) -> 2,961.60000 | F123: =F127+F173 -> 15,455.86781 | G123: =SUM(G127+G173) -> 16,404.34197 | H123: 21,775.50000 | I123: 21,775.50000 | J123: 2,000.00000
A124: 17.3. | B124: областной бюджет | C124: =SUM(D124:J124) -> 6,344.40000 | D124: =SUM(D128+D174) -> 6,344.40000 | E124: =SUM(E128+E174) -> 0.00000 | F124: =SUM(F128+F174) -> 0.00000 | G124: 0.00000 | H124: 0.00000 | I124: 0.00000 | J124: 0.00000
A125: 18. | B125: 1. Капитальные вложения
A126: 18.1. | B126: Всего по направлению «Капитальные вложения», всего, в том числе | C126: =SUM(C127:C128) -> 22,520.55117 | D126: 4,173.60000 | E126: 1,420.00000 | F126: 14,122.60920 | G126: 2,804.34197 | H126: 0.00000 | I126: 0.00000 | J126: 0.00000 | K126: Х
A127: 18.2. | B127: местный бюджет | C127: =SUM(D127:J127) -> 19,176.15117 | D127: =SUM(D161+D131) -> 829.20000 | E127: 1,420.00000 | F127: 14,122.60920 | G127: 2,804.34197 | H127: 0.00000 | I127: 0.00000 | J127: 0.00000
A128: 18.3. | B128: областной бюджет | C128: =SUM(D128:J128) -> 3,344.40000 | D128: =SUM(D162+D132) -> 3,344.40000 | E128: 0.00000 | F128: 0.00000 | G128: 0.00000 | H128: 0.00000 | I128: 0.00000 | J128: 0.00000
A129: 19. | B129: 1.1. Бюджетные инвестиции в объекты капитального строительства
A130: 19.1. | B130: Бюджетные инвестиции в объекты капитального строительства всего, в том числе | C130: =SUM(D130:J130) -> 16,926.95117 | D130: =SUM(D131:D132) -> 0.00000 | E130: =SUM(E131:E132) -> 0.00000 | F130: 14,122.60920 | G130: 2,804.34197 | H130: 0.00000 | I130: 0.00000 | J130: 0.00000 | K130: Х
A131: 19.2. | B131: местный бюджет | C131: =SUM(D131:J131) -> 16,926.95117 | D131: =SUM(D135+D147+D150+D154+D157) -> 0.00000 | E131: 0.00000 | F131: 14,122.60920 | G131: 2,804.34197 | H131: 0.00000 | I131: 0.00000 | J131: 0.00000
A132: 19.3. | B132: областной бюджет | C132: =SUM(D132:J132) -> 0.00000 | D132: =SUM(D136+D151+D158) -> 0.00000 | E132: =SUM(E136+E151+E158) -> 0.00000 | F132: 0.00000 | G132: 0.00000 | H132: 0.00000 | I132: 0.00000 | J132: 0.00000
A133: 20. | B133: Мероприятие 3 - Закупка и установка осветительного оборудования с заменой неэффективного на энергосберегающее, в том числе замена ламп накаливания на энергосберегающие, строительство, модернизация сетей уличного освещения, проектно-сметные работы, экспертиза проектно-сметной документации
A134: 20.1. | B134: Всего, из них | C134: =SUM(C135:C136) -> 14,458.20066 | D134: =SUM(D135:D136) -> 0.00000 | E134: =SUM(E135:E136) -> 0.00000 | F134: 12,330.00000 | G134: 2,128.20066 | H134: 0.00000 | I134: 0.00000 | J134: 0.00000 | K134: стр.28
A135: 20.2. | B135: местный бюджет | C135: =SUM(D135:J135) -> 14,458.20066 | D135: 0.00000 | E135: 0.00000 | F135: =SUM(F143+F139) -> 12,330.00000 | G135: =SUM(G143+G139) -> 2,128.20066 | H135: 0.00000 | I135: =SUM(H135) -> 0.00000 | J135: 0.00000
A136: 20.3. | B136: областной бюджет | C136: =SUM(D136:J136) -> 0.00000 | D136: 0.00000 | E136: 0.00000 | F136: 0.00000 | G136: 0.00000 | H136: 0.00000 | I136: 0.00000 | J136: 0.00000
A137: 20.4. | B137: - Разработка ПСД на строительство сетей уличного освещения микрорайона Южный
A138: 20.5. | B138: Всего: | C138: =SUM(C139) -> 283.20066 | D138: 0.00000 | E138: 0.00000 | F138: 283.20066 | G138: 0.00000 | H138: 0.00000 | I138: 0.00000 | J138: 0.00000 | K138: стр.28
A139: 20.6. | B139: местный бюджет | C139: =SUM(D139:J139) -> 283.20066 | D139: 0.00000 | E139: 0.00000 | F139: 283.20066 | G139: 0.00000 | H139: 0.00000 | I139: =SUM(H139) -> 0.00000 | J139: =SUM(I139) -> 0.00000
A140: 20.7. | B140: областной бюджет | C140: =SUM(D140:J140) -> 0.00000 | D140: 0.00000 | E140: 0.00000 | F140: 0.00000 | G140: 0.00000 | H140: 0.00000 | I140: 0.00000 | J140: 0.00000
A141: 20.8. | B141: - Строительство сетей уличного освещения микрорайона Южный
A142: 20.9. | B142: Всего: | C142: =SUM(C143) -> 14,175.00000 | D142: 0.00000 | E142: 0.00000 | F142: 12,046.79934 | G142: 2,128.20066 | H142: 0.00000 | I142: 0.00000 | J142: 0.00000 | K142: стр.28
A143: 20.10. | B143: местный бюджет | C143: =SUM(D143:J143) -> 14,175.00000 | D143: 0.00000 | E143: 0.00000 | F143: 12,046.79934 | G143: 2,128.20066 | H143: 0.00000 | I143: =SUM(H143) -> 0.00000 | J143: =SUM(I143) -> 0.00000
A144: 20.11. | B144: областной бюджет | C144: =SUM(D144:J144) -> 0.00000 | D144: 0.00000 | E144: 0.00000 | F144: 0.00000 | G144: 0.00000 | H144: 0.00000 | I144: 0.00000 | J144: 0.00000
A145: 21. | B145: Мероприятие 5 - Разработка, экспертиза проектно-сметной документации на строительство сетей водоснабжения в Североуральском городском округе
A146: 21.1. | B146: Всего, из них | C146: =SUM(D146:J146) -> 0.00000 | D146: =SUM(D147) -> 0.00000 | E146: =SUM(E147) -> 0.00000 | F146: 0.00000 | G146: 0.00000 | H146: 0.00000 | I146: 0.00000 | J146: 0.00000 | K146: Х
A147: 21.2. | B147: местный бюджет | C147: =SUM(D147:J147) -> 0.00000 | D147: 0.00000 | E147: 0.00000 | F147: 0.00000 | G147: 0.00000 | H147: =SUM(G147) -> 0.00000 | I147: =SUM(H147) -> 0.00000 | J147: =SUM(I147) -> 0.00000
A148: 22. | B148: Мероприятие 6 - Строительство сетей водоснабжения в Североуральском городском округе
A149: 22.1. | B149: Всего, из них | C149: =SUM(C150:C151) -> 0.00000 | D149: =SUM(D150:D151) -> 0.00000 | E149: =SUM(E150:E151) -> 0.00000 | F149: 0.00000 | G149: 0.00000 | H149: 0.00000 | I149: 0.00000 | J149: 0.00000 | K149: Х
A150: 22.2. | B150: местный бюджет | C150: =SUM(D150:J150) -> 0.00000 | D150: 0.00000 | E150: 0.00000 | F150: 0.00000 | G150: 0.00000 | H150: =SUM(G150) -> 0.00000 | I150: 0.00000 | J150: 0.00000
A151: 22.3. | B151: областной бюджет | C151: =SUM(D151:J151) -> 0.00000 | D151: 0.00000 | E151: 0.00000 | F151: 0.00000 | G151: 0.00000 | H151: 0.00000 | I151: 0.00000 | J151: 0.00000
A152: 23. | B152: Мероприятие 7 - Разработка, экспертиза проектно-сметной документации на строительство котельных в Североуральском городском округе
A153: 23.1. | B153: Всего, из них | C153: =SUM(D153:J153) -> 2,468.75051 | D153: =SUM(D154) -> 0.00000 | E153: =SUM(E154) -> 0.00000 | F153: 1,792.60920 | G153: 676.14131 | H153: 0.00000 | I153: 0.00000 | J153: 0.00000 | K153: стр.33
A154: 23.2. | B154: местный бюджет | C154: =SUM(D154:J154) -> 2,468.75051 | D154: 0.00000 | E154: 0.00000 | F154: 1,792.60920 | G154: 676.14131 | H154: 0.00000 | I154: =SUM(H154) -> 0.00000 | J154: =SUM(I154) -> 0.00000
A155: 24. | B155: Мероприятие 8 - Строительство котельных в Североуральском городском округе
A156: 24.1. | B156: Всего, из них | C156: =SUM(C157:C158) -> 0.00000 | D156: =SUM(D157:D158) -> 0.00000 | E156: =SUM(E157:E158) -> 0.00000 | F156: 0.00000 | G156: 0.00000 | H156: 0.00000 | I156: 0.00000 | J156: 0.00000 | K156: Х
A157: 24.2. | B157: местный бюджет | C157: =SUM(D157:J157) -> 0.00000 | D157: 0.00000 | E157: 0.00000 | F157: 0.00000 | G157: 0.00000 | H157: 0.00000 | I157: 0.00000 | J157: =SUM(I157) -> 0.00000
A158: 24.3. | B158: областной бюджет | C158: =SUM(D158:J158) -> 0.00000 | D158: 0.00000 | E158: 0.00000 | F158: 0.00000 | G158: 0.00000 | H158: =SUM(G158) -> 0.00000 | I158: =SUM(H158) -> 0.00000 | J158: =SUM(I158) -> 0.00000
A159: 25. | B159: 1.2. Иные капитальные вложения
A160: 25.1. | B160: Всего, в том числе | C160: =SUM(C161:C162) -> 5,593.60000 | D160: 4,173.60000 | E160: 1,420.00000 | F160: 0.00000 | G160: 0.00000 | H160: 0.00000 | I160: 0.00000 | J160: 0.00000 | K160: Х
A161: 25.2. | B161: местный бюджет | C161: =SUM(D161:J161) -> 2,249.20000 | D161: =SUM(D169+D165) -> 829.20000 | E161: =SUM(E169) -> 1,420.00000 | F161: 0.00000 | G161: 0.00000 | H161: 0.00000 | I161: 0.00000 | J161: 0.00000
A162: 25.3. | B162: областной бюджет | C162: =SUM(D162:J162) -> 3,344.40000 | D162: =SUM(D170+D166) -> 3,344.40000 | E162: =SUM(E170) -> 0.00000 | F162: 0.00000 | G162: 0.00000 | H162: 0.00000 | I162: 0.00000 | J162: 0.00000
A163: 26. | B163: Мероприятие 1- Реконструкция, модернизация водопроводных сетей, сетей системы водоотведения с заменой (без замены) оборудования с более высоким КПД, установка регулируемого привода, реконструкция тепловых сетей, в том числе тепловых пунктов, котельных, капитальный ремонт систем коммунального хозяйства
A164: 26.1. | B164: Всего, в том числе: | C164: =SUM(C165:C166) -> 3,037.40000 | D164: 3,037.40000 | E164: 0.00000 | F164: 0.00000 | G164: 0.00000 | H164: 0.00000 | I164: 0.00000 | J164: 0.00000 | K164: стр.29
A165: 26.2. | B165: местный бюджет | C165: =SUM(D165:J165) -> 281.00000 | D165: 281.00000 | E165: 0.00000 | F165: 0.00000 | G165: 0.00000 | H165: 0.00000 | I165: 0.00000 | J165: 0.00000
A166: 26.3. | B166: областной бюджет | C166: =SUM(D166:J166) -> 2,756.40000 | D166: 2,756.40000 | E166: 0.00000 | F166: 0.00000 | G166: 0.00000 | H166: =SUM(G166) -> 0.00000 | I166: =SUM(H166) -> 0.00000 | J166: =SUM(I166) -> 0.00000
A167: 27. | B167: Мероприятие 3 - Закупка и установка осветительного оборудования с заменой неэффективного на энергосберегающее, в том числе замена ламп накаливания на энергосберегающие, строительство, модернизация сетей уличного освещения, проектно-сметные работы, экспертиза проектно-сметной документации
A168: 27.1. | B168: Всего, из них | C168: =SUM(C169:C170) -> 2,556.20000 | D168: =SUM(D169:D170) -> 1,136.20000 | E168: =SUM(E169:E170) -> 1,420.00000 | F168: 0.00000 | G168: 0.00000 | H168: 0.00000 | I168: 0.00000 | J168: 0.00000 | K168: стр.28
A169: 27.2. | B169: местный бюджет | C169: =SUM(D169:J169) -> 1,968.20000 | D169: 548.20000 | E169: 1,420.00000 | F169: 0.00000 | G169: 0.00000 | H169: 0.00000 | I169: =SUM(H169) -> 0.00000 | J169: 0.00000
A170: 27.3. | B170: областной бюджет | C170: =SUM(D170:J170) -> 588.00000 | D170: 588.00000 | E170: 0.00000 | F170: 0.00000 | G170: 0.00000 | H170: 0.00000 | I170: 0.00000 | J170: 0.00000
A171: 28. | B171: 3. Прочие нужды
A172: 28.1. | B172: Всего по направлению «Прочие нужды», всего, в том числе: | C172: =SUM(D172:J172) -> 67,017.75861 | D172: =SUM(D173:D174) -> 4,991.90000 | E172: =SUM(E173:E174) -> 1,541.60000 | F172: 1,333.25861 | G172: 13,600.00000 | H172: 21,775.50000 | I172: 21,775.50000 | J172: 2,000.00000 | K172: Х
A173: 28.2. | B173: местный бюджет | C173: =SUM(D173:J173) -> 64,017.75861 | D173: =SUM(D181+D186+D190+D193+D177) -> 1,991.90000 | E173: 1,541.60000 | F173: 1,333.25861 | G173: 13,600.00000 | H173: 21,775.50000 | I173: 21,775.50000 | J173: 2,000.00000
A174: 28.3. | B174: областной бюджет | C174: =SUM(D174:J174) -> 3,000.00000 | D174: =SUM(D182+D187+D178) -> 3,000.00000 | E174: 0.00000 | F174: 0.00000 | G174: 0.00000 | H174: 0.00000 | I174: 0.00000 | J174: 0.00000
A175: 28.4. | B175: Мероприятие 1- Реконструкция, модернизация водопроводных сетей, сетей системы водоотведения с заменой (без замены) оборудования с более высоким КПД, установка регулируемого привода, реконструкция тепловых сетей, в том числе тепловых пунктов, котельных, капитальный ремонт систем коммунального хозяйства
A176: 28.5. | B176: Всего, в том числе: | C176: =SUM(C177:C178) -> 52,551.00000 | D176: 0.00000 | E176: 0.00000 | F176: 0.00000 | G176: 13,000.00000 | H176: 19,775.50000 | I176: 19,775.50000 | J176: 0.00000 | K176: стр.29
A177: 28.6. | B177: местный бюджет | C177: =SUM(D177:J177) -> 52,551.00000 | D177: 0.00000 | E177: 0.00000 | F177: 0.00000 | G177: 13,000.00000 | H177: 19,775.50000 | I177: 19,775.50000 | J177: 0.00000
A178: 28.7. | B178: областной бюджет | C178: =SUM(D178:J178) -> 0.00000 | D178: 0.00000 | E178: 0.00000 | F178: 0.00000 | G178: 0.00000 | H178: =SUM(G178) -> 0.00000 | I178: =SUM(H178) -> 0.00000 | J178: =SUM(I178) -> 0.00000
A179: 29. | B179: Мероприятие 2 - Оснащение зданий (строений, сооружений), находящихся в муниципальной собственности, многоквартирных жилых домов, жилых помещений, квартир приборами учета используемых энергетических ресурсов, в том числе разработка проектно-сметной документации
A180: 29.1. | B180: Всего, из них | C180: =SUM(D180:J180) -> 9,977.55861 | D180: =SUM(D181:D182) -> 4,200.00000 | E180: 1,100.00000 | F180: 1,250.40861 | G180: 427.15000 | H180: 1,000.00000 | I180: 1,000.00000 | J180: 1,000.00000 | K180: стр.22,23,24,25,26
A181: 29.2. | B181: местный бюджет | C181: =SUM(D181:J181) -> 6,977.55861 | D181: 1,200.00000 | E181: 1,100.00000 | F181: 1,250.40861 | G181: 427.15000 | H181: 1,000.00000 | I181: =SUM(H181) -> 1,000.00000 | J181: 1,000.00000
A182: 29.3. | B182: областной бюджет | C182: =SUM(D182:J182) -> 3,000.00000 | D182: 3,000.00000 | E182: =SUM(E183) -> 0.00000 | F182: 0.00000 | G182: 0.00000 | H182: 0.00000 | I182: 0.00000 | J182: 0.00000
A183: 29.4. | B183: федеральный бюджет | C183: =SUM(D183:J183) -> 0.00000 | D183: 0.00000 | E183: 0.00000 | F183: 0.00000 | G183: =SUM(F183) -> 0.00000 | H183: =SUM(G183) -> 0.00000 | I183: =SUM(H183) -> 0.00000 | J183: =SUM(I183) -> 0.00000
A184: 30. | B184: Мероприятие 3 - Закупка и установка осветительного оборудования с заменой неэффективного на энергосберегающее, в том числе замена ламп накаливания на энергосберегающие, строительство, модернизация сетей уличного освещения, проектно-сметные работы, экспертиза проектно-сметной документации
A185: 30.1. | B185: Всего, из них | C185: =SUM(C186:C187) -> 3,591.90000 | D185: =SUM(D186:D187) -> 411.90000 | E185: =SUM(E186:E187) -> 180.00000 | F185: 0.00000 | G185: 0.00000 | H185: 1,000.00000 | I185: 1,000.00000 | J185: 1,000.00000 | K185: стр.28
A186: 30.2. | B186: местный бюджет | C186: =SUM(D186:J186) -> 3,591.90000 | D186: 411.90000 | E186: 180.00000 | F186: 0.00000 | G186: 0.00000 | H186: 1,000.00000 | I186: =SUM(H186) -> 1,000.00000 | J186: 1,000.00000
A187: 30.3. | B187: областной бюджет | C187: =SUM(D187:J187) -> 0.00000 | D187: 0.00000 | E187: 0.00000 | F187: 0.00000 | G187: 0.00000 | H187: 0.00000 | I187: 0.00000 | J187: 0.00000
A188: 31. | B188: Мероприятие 4- Разработка схемы водоснабжения Североуральского городского округа
A189: 31.1. | B189: Всего, из них | C189: =SUM(D189:J189) -> 380.00000 | D189: =SUM(D190) -> 380.00000 | E189: =SUM(E190) -> 0.00000 | F189: 0.00000 | G189: 0.00000 | H189: 0.00000 | I189: 0.00000 | J189: 0.00000 | K189: стр.30
A190: 31.2. | B190: местный бюджет | C190: =SUM(D190:J190) -> 380.00000 | D190: 380.00000 | E190: 0.00000 | F190: 0.00000 | G190: =SUM(F190) -> 0.00000 | H190: =SUM(G190) -> 0.00000 | I190: =SUM(H190) -> 0.00000 | J190: =SUM(I190) -> 0.00000
A191: 32. | B191: Мероприятие 9- Прочие мероприятия в области энергосбережения (разработка технических заданий, топливно-энерготехнического баланса и т.п.)
A192: 32.1. | B192: Всего, из них | C192: =SUM(D192:J192) -> 517.30000 | D192: =SUM(D193) -> 0.00000 | E192: =SUM(E193) -> 261.60000 | F192: 82.85000 | G192: 172.85000 | H192: 0.00000 | I192: 0.00000 | J192: 0.00000 | K192: стр.35,36
A193: 32.2. | B193: местный бюджет | C193: =SUM(D193:J193) -> 517.30000 | D193: 0.00000 | E193: 261.60000 | F193: 82.85000 | G193: 172.85000 | H193: 0.00000 | I193: =SUM(H193) -> 0.00000 | J193: =SUM(I193) -> 0.00000
A194: 35. | B194: Подпрограмма 3: Развитие лесного хозяйства на территории Североуральского городского округа
A195: 35.1. | B195: Всего по подпрограмме 1, всего, в том числе | C195: =SUM(C196:C196) -> 3,155.20000 | D195: =SUM(D196) -> 774.10000 | E195: =SUM(E196) -> 881.10000 | F195: 0.00000 | G195: 0.00000 | H195: 500.00000 | I195: 500.00000 | J195: 500.00000 | K195: Х
A196: 35.2 | B196: местный бюджет | C196: =SUM(D196:J196) -> 3,155.20000 | D196: =SUM(D208) -> 774.10000 | E196: =SUM(E208) -> 881.10000 | F196: 0.00000 | G196: 0.00000 | H196: 500.00000 | I196: 500.00000 | J196: 500.00000
A197: 36. | B197: 1. Капитальные вложения
A198: 36.1. | B198: Всего по направлению «Капитальные вложения», всего, в том числе | C198: 0.00000 | D198: 0.00000 | E198: 0.00000 | F198: 0.00000 | G198: 0.00000 | H198: 0.00000 | I198: 0.00000 | J198: 0.00000 | K198: Х
A199: 36.2. | B199: местный бюджет | C199: 0.00000 | D199: 0.00000 | E199: 0.00000 | F199: 0.00000 | G199: 0.00000 | H199: 0.00000 | I199: 0.00000 | J199: 0.00000
A200: 37. | B200: 1.1. Бюджетные инвестиции в объекты капитального строительства
A201: 37.1. | B201: Бюджетные инвестиции в объекты капитального строительства всего, в том числе: | C201: =SUM(C202) -> 0.00000 | D201: =SUM(D202) -> 0.00000 | E201: 0.00000 | F201: 0.00000 | G201: 0.00000 | H201: 0.00000 | I201: 0.00000 | J201: 0.00000 | K201: Х
... 261 more rows

Sheet Лист2

Sheet Лист3
